bitfinex/quotes_SOLUSD_20250622
["timestamp","ask_amount","ask_price","bid_price","bid_amount"]
[1750608418305,8.38,129.19,129.16,28.06778956]
[1750608418810,8.38,129.19,129.17,28.06778956]
[1750608419119,8.38,129.19,129.18,28.06778956]
[1750608420837,148.1,129.3,129.21,26.0]
[1750608420838,28.06778956,129.29,129.21,26.0]
[1750608421132,8.38,129.26,129.25,28.06778956]
[1750608421490,8.38,129.26,129.25,54.06778956]
[1750608421691,8.38,129.26,129.25,26.0]
[1750608421891,41.14,129.26,129.24,28.06778956]
[1750608422902,41.14,129.26,129.23,26.0]
[1750608423313,41.14,129.26,129.24,28.06778956]
[1750608423833,41.14,129.26,129.18,7.6804]
[1750608424005,18.64964886,129.25,129.21,28.06778956]
[1750608424410,41.14,129.26,129.23,28.06778956]
[1750608424801,41.14,129.26,129.24,28.06778956]
[1750608425202,41.14,129.26,129.25,28.06778956]
[1750608425926,8.38,129.26,129.25,28.06778956]
[1750608426137,8.38,129.26,129.24,28.06778956]
[1750608426337,32.76,129.25,129.21,26.0]
[1750608426637,60.82778956,129.25,129.21,54.06778956]
[1750608427425,41.14,129.24,129.22,28.06778956]
[1750608427623,46.71743842,129.27,129.22,28.06778956]
[1750608427816,41.14,129.26,129.22,28.06778956]
[1750608428014,41.14,129.26,129.24,28.06778956]
[1750608428219,177.77498956,129.29,129.25,28.06778956]
[1750608428220,148.1,129.29,129.25,28.06778956]
[1750608428528,41.06,129.28,129.26,28.06778956]
[1750608428909,41.06,129.28,129.25,28.06778956]
[1750608429112,41.06,129.28,129.26,28.06778956]
[1750608429430,41.06,129.28,129.21,28.06778956]
[1750608429431,46.71743842,129.27,129.21,28.06778956]
[1750608429729,46.71743842,129.27,129.18,27.6588]
[1750608429730,28.06778956,129.24,129.18,26.0]
[1750608429911,32.76,129.23,129.19,28.06778956]
[1750608430221,32.76,129.23,129.22,28.06778956]
[1750608430927,8.3,129.23,129.22,28.06778956]
[1750608432011,8.3,129.23,129.2,28.06778956]
[1750608432215,32.76,129.22,129.2,28.06778956]
[1750608432514,32.76,129.22,129.18,26.0]
[1750608432832,32.76,129.22,129.2,28.06778956]
[1750608433025,32.76,129.22,129.19,28.06778956]
[1750608433226,32.76,129.22,129.19,19.201003]
[1750608433617,32.76,129.22,129.18,45.201003]
[1750608433806,51.961003,129.22,129.18,26.0]
[1750608434012,18.64964886,129.21,129.17,19.201003]
[1750608434205,32.74,129.2,129.17,45.201003]
[1750608434823,51.941003,129.2,129.16,19.201003]
[1750608435030,51.941003,129.2,129.11,6.273]
[1750608435031,37.85065186,129.19,129.15,19.201003]
[1750608435236,32.74,129.18,129.15,19.201003]
[1750608435932,32.74,129.18,129.11,6.273]
[1750608435933,32.74,129.18,129.14,45.201003]
[1750608436112,32.74,129.18,129.16,19.201003]
[1750608436313,19.201003,129.23,129.17,19.201003]
[1750608436529,19.201003,129.21,129.17,19.201003]
[1750608436817,19.201003,129.21,129.16,19.201003]
[1750608437011,18.64964886,129.2,129.17,19.201003]
[1750608437218,32.74,129.19,129.17,19.201003]
[1750608438016,32.74,129.19,129.18,19.201003]
[1750608439449,32.74,129.19,129.15,26.0]
[1750608439622,32.74,129.19,129.15,19.201003]
[1750608439819,19.201003,129.17,129.1,1.6518]
[1750608440125,19.201003,129.17,129.03,37.2169381]
[1750608440126,19.201003,129.13,129.05,1.5003]
[1750608440337,41.04,129.12,129.08,19.201003]
[1750608440530,41.04,129.12,129.08,45.201003]
[1750608440726,8.3,129.12,129.11,19.201003]
[1750608440931,8.3,129.12,129.09,19.201003]
[1750608441146,8.3,129.12,129.03,6.2709]
[1750608441147,19.201003,129.11,129.07,19.201003]
[1750608441436,32.74,129.1,129.06,19.201003]
[1750608441828,32.74,129.1,129.08,19.201003]
[1750608442033,32.74,129.1,129.07,19.201003]
[1750608442540,32.74,129.1,129.06,26.0]
[1750608442841,32.74,129.1,129.07,19.201003]
[1750608443743,41.04,129.11,129.06,26.0]
[1750608443945,32.74,129.11,129.1,19.201003]
[1750608444148,32.74,129.11,129.1,45.201003]
[1750608444334,19.201003,129.15,129.1,26.0]
[1750608444531,60.241003,129.14,129.1,26.0]
[1750608444743,19.201003,129.13,129.1,26.0]
[1750608445036,37.85065186,129.12,129.07,19.201003]
[1750608445240,37.85065186,129.12,129.06,26.0]
[1750608445241,51.961003,129.11,129.06,26.0]
[1750608445432,51.961003,129.11,129.07,19.201003]
[1750608445636,32.76,129.11,129.07,19.201003]
[1750608446425,32.76,129.11,129.08,19.201003]
[1750608446623,37.85065186,129.12,129.08,19.201003]
[1750608446827,41.06,129.11,129.08,19.201003]
[1750608447647,41.06,129.11,129.09,19.201003]
[1750608447835,32.76,129.11,129.1,19.201003]
[1750608448030,32.76,129.11,129.09,19.201003]
[1750608448449,32.76,129.11,129.1,19.201003]
[1750608449946,8.3,129.16,129.13,26.0]
[1750608450149,8.3,129.16,129.15,19.201003]
[1750608450633,41.06,129.21,129.18,26.0]
[1750608451138,41.06,129.21,129.15,26.0]
[1750608451339,41.06,129.21,129.2,19.201003]
[1750608451340,8.3,129.21,129.2,19.201003]
[1750608451539,8.3,129.21,129.2,38.402006]
[1750608452038,8.3,129.26,129.23,26.0]
[1750608452235,41.06,129.26,129.24,19.201003]
[1750608453035,41.06,129.26,129.23,19.201003]
[1750608453241,69.12790866,129.26,129.22,28.06790866]
[1750608453635,41.06,129.26,129.22,28.06790866]
[1750608453929,18.64964886,129.25,129.2,28.06790866]
[1750608454131,18.64964886,129.25,129.19,28.06790866]
[1750608454132,28.06790866,129.24,129.19,28.06790866]
[1750608454340,32.74,129.23,129.2,28.06790866]
[1750608454543,32.74,129.23,129.21,28.06790866]
[1750608454743,32.74,129.23,129.18,26.0]
[1750608454744,32.74,129.23,129.22,28.06790866]
[1750608456561,32.74,129.25,129.22,28.06790866]
[1750608456749,32.74,129.25,129.24,28.06790866]
[1750608457554,28.06790866,129.28,129.24,28.06790866]
[1750608457555,194.81755752,129.29,129.24,28.06790866]
[1750608457857,194.81755752,129.29,129.25,28.06790866]
[1750608457858,8.3,129.26,129.25,28.06790866]
[1750608459458,8.3,129.26,129.22,26.0]
[1750608459758,32.72,129.25,129.22,28.06790866]
[1750608460252,46.71755752,129.24,129.2,28.06790866]
[1750608460934,60.78790866,129.25,129.21,28.06790866]
[1750608461247,32.72,129.25,129.23,28.06790866]
[1750608461448,32.72,129.25,129.24,28.06790866]
[1750608461831,8.3,129.26,129.24,28.06790866]
[1750608462036,8.3,129.26,129.25,28.06790866]
[1750608463159,8.3,129.26,129.24,28.06790866]
[1750608463339,8.3,129.26,129.25,28.06790866]
[1750608468745,8.3,129.26,129.21,26.0]
[1750608469060,8.3,129.26,129.22,28.06790866]
[1750608469061,32.7,129.25,129.22,28.06790866]
[1750608469565,32.7,129.25,129.17,1.5962]
[1750608469737,32.7,129.25,129.22,28.06790866]
[1750608469943,60.76790866,129.25,129.21,28.06790866]
[1750608471165,32.7,129.25,129.21,28.06790866]
[1750608471463,32.7,129.25,129.22,28.06790866]
[1750608471660,32.7,129.25,129.18,26.0]
[1750608471961,32.7,129.25,129.21,28.06790866]
[1750608472149,32.7,129.25,129.22,28.06790866]
[1750608472963,32.7,129.25,129.15,34.41180866]
[1750608472964,46.71755752,129.24,129.15,34.41180866]
[1750608473266,32.7,129.23,129.2,28.06790866]
[1750608473570,32.7,129.23,129.19,28.06790866]
[1750608473741,60.76790866,129.23,129.19,28.06790866]
[1750608473945,32.7,129.23,129.2,28.06790866]
[1750608474147,60.76790866,129.23,129.19,28.06790866]
[1750608475258,32.7,129.23,129.2,19.19778143]
[1750608475652,32.7,129.23,129.19,19.19778143]
[1750608475850,51.89778143,129.23,129.19,19.19778143]
[1750608476471,32.7,129.23,129.19,19.19778143]
[1750608476969,32.7,129.23,129.21,19.19778143]
[1750608477269,32.68,129.23,129.22,19.19778143]
[1750608477569,32.68,129.23,129.2,19.19778143]
[1750608479465,19.19778143,129.22,129.18,26.0]
[1750608479777,19.19778143,129.22,129.1,10.0]
[1750608479778,19.19778143,129.19,129.09,7.624]
[1750608479943,19.19778143,129.16,129.12,19.19778143]
[1750608480147,32.68,129.18,129.1,19.19778143]
[1750608480148,40.96,129.15,129.1,19.19778143]
[1750608480372,40.96,129.15,129.05,7.624]
[1750608480373,19.19778143,129.13,129.05,7.624]
[1750608480543,19.19778143,129.12,129.05,7.624]
[1750608480746,51.87778143,129.11,129.08,26.0]
[1750608480981,19.19778143,129.09,129.02,144.00628102]
[1750608481180,19.19778143,129.09,129.05,19.19778143]
[1750608481181,8.28,129.08,129.05,19.19778143]
[1750608481483,8.28,129.08,129.07,19.19778143]
[1750608481875,1.5152,129.17,129.1,26.0]
[1750608482046,1.5152,129.17,129.12,19.19778143]
[1750608482047,40.96,129.16,129.12,19.19778143]
[1750608482252,60.15778143,129.16,129.1,26.0]
[1750608482450,60.15778143,129.16,129.11,19.19778143]
[1750608482662,40.96,129.16,129.14,19.19778143]
[1750608482972,60.15778143,129.16,129.1,26.0]
[1750608483276,60.15778143,129.16,129.09,1.6325]
[1750608483277,69.07433218,129.16,129.12,26.0]
[1750608483656,69.07433218,129.16,129.12,28.11433218]
[1750608483959,40.96,129.16,129.13,28.11433218]
[1750608484167,18.64964886,129.18,129.14,28.11433218]
[1750608484479,8.28,129.17,129.14,26.0]
[1750608484675,32.68,129.16,129.14,26.0]
[1750608484884,32.68,129.16,129.09,1.6325]
[1750608484885,32.68,129.16,129.13,28.11433218]
[1750608485174,32.68,129.16,129.15,26.0]
[1750608485673,8.28,129.17,129.15,28.11433218]
[1750608485861,8.28,129.17,129.16,28.11433218]
[1750608486273,8.28,129.17,129.13,26.0]
[1750608486455,8.28,129.17,129.16,28.11433218]
[1750608488954,8.28,129.17,129.14,54.11433218]
[1750608489269,32.68,129.16,129.14,54.11433218]
[1750608489855,32.68,129.16,129.15,28.11433218]
[1750608490157,8.28,129.17,129.15,28.11433218]
[1750608490589,69.07433218,129.17,129.11,26.0]
[1750608490871,69.07433218,129.17,129.07,6.0313]
[1750608490872,28.11433218,129.14,129.1,28.11433218]
[1750608491052,32.66,129.13,129.1,28.11433218]
[1750608491252,32.66,129.13,129.1,54.11433218]
[1750608491454,32.66,129.13,129.1,26.0]
[1750608492179,46.76398104,129.12,129.08,28.11433218]
[1750608492373,46.76398104,129.12,129.05,1.6505]
[1750608492374,46.76398104,129.12,129.07,28.11433218]
[1750608492675,18.64964886,129.12,129.08,28.11433218]
[1750608492859,28.11433218,129.11,129.07,28.11433218]
[1750608493061,40.9,129.1,129.07,28.11433218]
[1750608493259,40.9,129.1,129.07,54.11433218]
[1750608493473,40.9,129.1,129.07,26.0]
[1750608493676,69.01433218,129.1,129.06,28.11433218]
[1750608493982,40.9,129.1,129.06,54.11433218]
[1750608494288,40.9,129.1,129.09,26.0]
[1750608494468,32.66,129.12,129.09,54.11433218]
[1750608494781,8.24,129.13,129.12,26.0]
[1750608494978,8.24,129.13,129.09,26.0]
[1750608495175,8.24,129.13,129.12,28.11433218]
[1750608497279,36.35433218,129.13,129.09,28.11433218]
[1750608497458,32.66,129.12,129.08,28.11433218]
[1750608497657,32.66,129.12,129.09,28.11433218]
[1750608497962,46.76398104,129.11,129.03,6.508]
[1750608498154,18.64964886,129.09,129.05,28.11433218]
[1750608498354,32.66,129.08,129.05,28.11433218]
[1750608498567,32.66,129.08,129.02,143.96741257]
[1750608498568,32.66,129.08,129.04,28.11433218]
[1750608498985,32.66,129.08,129.04,54.11433218]
[1750608500080,32.66,129.08,129.07,28.11433218]
[1750608500470,32.66,129.1,129.09,26.0]
[1750608500667,32.66,129.11,129.09,54.11433218]
[1750608500852,32.66,129.11,129.09,26.0]
[1750608501059,32.66,129.11,129.07,28.11433218]
[1750608501373,32.66,129.11,129.08,28.11433218]
[1750608502574,32.66,129.11,129.09,28.11433218]
[1750608502776,32.66,129.11,129.08,26.0]
[1750608503360,32.66,129.11,129.08,54.11433218]
[1750608503876,18.64964886,129.1,129.07,28.11433218]
[1750608504574,46.76398104,129.1,129.06,28.11433218]
[1750608504878,46.76398104,129.1,129.05,54.11433218]
[1750608505078,18.64964886,129.08,129.05,28.11433218]
[1750608505265,51.30964886,129.08,129.05,28.11433218]
[1750608505474,51.30964886,129.08,129.05,54.11433218]
[1750608505973,51.30964886,129.08,129.05,28.11433218]
[1750608506176,51.30964886,129.08,129.05,54.11433218]
[1750608506407,51.30964886,129.08,129.05,26.0]
[1750608506764,18.64964886,129.06,129.02,168.17721216]
[1750608506978,40.9,129.05,129.02,26.0]
[1750608507186,18.64964886,129.04,128.97,1.5942]
[1750608507361,18.64964886,129.04,129.02,28.11433218]
[1750608507707,18.64964886,129.04,129.0,26.0]
[1750608507708,18.64964886,129.12,129.03,28.11433218]
[1750608507994,8.24,129.1,129.08,28.11433218]
[1750608508786,8.24,129.1,129.09,28.11433218]
[1750608509191,8.24,129.1,129.08,28.11433218]
[1750608509579,8.24,129.1,129.07,28.11433218]
[1750608510090,8.24,129.1,129.08,28.11433218]
[1750608510592,8.24,129.1,129.07,28.11433218]
[1750608511107,18.64964886,129.09,129.0,24.91414886]
[1750608511406,18.64964886,129.09,129.06,28.11433218]
[1750608511407,32.66,129.08,129.06,28.11433218]
[1750608511578,18.64964886,129.07,129.04,28.11433218]
[1750608511771,46.76398104,129.07,129.03,28.11433218]
[1750608511972,32.66,129.08,129.01,28.11433218]
[1750608511973,18.64964886,129.05,129.01,28.11433218]
[1750608512182,32.64,129.04,129.0,26.0]
[1750608512391,46.76398104,129.09,129.03,28.11433218]
[1750608512392,32.64,129.05,129.03,28.11433218]
[1750608512705,32.64,129.05,129.04,28.11433218]
[1750608512868,32.64,129.07,129.06,26.0]
[1750608513070,18.64964886,129.08,129.06,26.0]
[1750608513692,18.64964886,129.08,129.05,19.2403537]
[1750608514199,37.89000256,129.08,129.04,19.2403537]
[1750608514636,18.64964886,129.06,129.03,19.2403537]
[1750608514779,32.64,129.05,129.03,19.2403537]
[1750608514975,32.64,129.05,129.02,19.2403537]
[1750608515325,32.64,129.05,129.04,19.2403537]
[1750608515596,32.64,129.07,129.04,45.2403537]
[1750608515799,8.24,129.11,129.07,26.0]
[1750608516019,8.24,129.11,129.09,19.2403537]
[1750608516822,8.24,129.11,129.1,19.2403537]
[1750608517314,8.24,129.11,129.09,45.2403537]
[1750608517620,8.24,129.11,129.1,19.2403537]
[1750608524657,8.24,129.11,129.09,19.2403537]
[1750608525627,8.24,129.11,129.1,19.2403537]
[1750608526700,8.24,129.11,129.1,45.2403537]
[1750608526899,17.88270432,129.18,129.13,26.0]
[1750608527219,17.88270432,129.18,129.17,19.2403537]
[1750608527605,8.2,129.23,129.17,19.2403537]
[1750608527925,8.2,129.23,129.2,19.2403537]
[1750608528229,37.89000256,129.22,129.18,19.2403537]
[1750608528398,18.64964886,129.22,129.19,19.2403537]
[1750608528895,18.64964886,129.2,129.16,45.2403537]
[1750608529102,37.89000256,129.2,129.16,45.2403537]
[1750608529411,18.64964886,129.2,129.16,45.2403537]
[1750608531324,37.89000256,129.2,129.16,26.0]
[1750608531530,18.64964886,129.17,129.14,45.2403537]
[1750608532218,18.64964886,129.17,129.14,19.2403537]
[1750608533029,32.6,129.18,129.16,19.2403537]
[1750608533247,32.6,129.18,129.12,45.2403537]
[1750608533248,18.64964886,129.17,129.12,26.0]
[1750608533541,18.64964886,129.17,129.14,19.2403537]
[1750608534142,51.8403537,129.18,129.16,19.2403537]
[1750608534143,32.6,129.18,129.16,19.2403537]
[1750608535149,32.6,129.18,129.15,19.2403537]
[1750608536556,32.6,129.18,129.12,26.0]
[1750608536557,32.6,129.18,129.16,19.2403537]
[1750608536924,32.6,129.18,129.12,45.2403537]
[1750608537146,32.6,129.18,129.16,19.2403537]
[1750608539239,32.6,129.18,129.17,19.2403537]
[1750608539815,51.22964886,129.21,129.17,19.2403537]
[1750608540017,51.22964886,129.21,129.18,19.2403537]
[1750608540247,148.1,129.22,129.19,19.2403537]
[1750608540456,8.2,129.23,129.21,19.2403537]
[1750608540628,8.2,129.27,129.22,19.2403537]
[1750608540834,8.2,129.27,129.2,26.0]
[1750608540835,40.78,129.27,129.2,26.0]
[1750608541042,40.78,129.27,129.21,19.2403537]
[1750608541043,19.2403537,129.26,129.21,19.2403537]
[1750608541242,18.64964886,129.25,129.22,19.2403537]
[1750608542354,8.2,129.27,129.24,19.2403537]
[1750608542658,8.2,129.27,129.26,19.2403537]
[1750608543220,9.69570684,129.29,129.25,1.6558]
[1750608543426,19.2403537,129.26,129.22,26.0]
[1750608543726,37.89000256,129.27,129.23,19.2403537]
[1750608543945,18.64964886,129.24,129.21,26.0]
[1750608544143,19.2403537,129.23,129.18,3.82634709]
[1750608544444,19.2403537,129.23,129.13,1.6558]
[1750608544445,18.64964886,129.2,129.13,1.6558]
[1750608544626,32.58,129.19,129.17,19.2403537]
[1750608544948,32.58,129.22,129.18,45.2403537]
[1750608545123,32.58,129.22,129.2,19.2403537]
[1750608545322,32.58,129.22,129.19,19.2403537]
[1750608545529,51.8203537,129.22,129.18,45.2403537]
[1750608545749,18.64964886,129.21,129.18,26.0]
[1750608546125,18.64964886,129.21,129.18,45.2403537]
[1750608546529,32.58,129.22,129.2,19.2403537]
[1750608546855,32.58,129.22,129.21,45.2403537]
[1750608547236,8.2,129.24,129.21,45.2403537]
[1750608547550,8.2,129.24,129.23,26.0]
[1750608547763,8.2,129.24,129.23,45.2403537]
[1750608547930,9.69570684,129.29,129.23,45.2403537]
[1750608548135,9.69570684,129.29,129.28,19.2403537]
[1750608548439,40.76,129.35,129.31,26.0]
[1750608548644,40.76,129.35,129.32,19.2403537]
[1750608549041,40.76,129.35,129.29,3.78617867]
[1750608549042,8.2,129.35,129.33,19.2403537]
[1750608549255,40.76,129.35,129.3,26.0]
[1750608549558,40.76,129.35,129.27,6.5291]
[1750608549559,18.64964886,129.33,129.27,6.5291]
[1750608549767,32.56,129.34,129.31,19.2403537]
[1750608549926,40.88,129.35,129.31,26.0]
[1750608550128,40.88,129.35,129.34,19.2403537]
[1750608550335,8.2,129.35,129.34,19.2403537]
[1750608550542,1.6960285,129.38,129.34,45.2403537]
[1750608550751,1.6960285,129.38,129.37,19.2403537]
[1750608551142,1.6960285,129.38,129.36,28.00501048]
[1750608551348,1.6960285,129.38,129.37,28.00501048]
[1750608554556,1.6960285,129.38,129.37,46.65465934]
[1750608554966,8.16,129.45,129.4,26.0]
[1750608555143,9.60094124,129.54,129.45,26.0]
[1750608555144,8.16,129.49,129.45,26.0]
[1750608555346,8.16,129.49,129.48,28.00501048]
[1750608555550,8.16,129.49,129.47,28.00501048]
[1750608555863,8.16,129.49,129.45,28.00501048]
[1750608556053,36.16501048,129.49,129.44,54.00501048]
[1750608556239,8.16,129.49,129.45,28.00501048]
[1750608556437,36.16501048,129.49,129.45,28.00501048]
[1750608556664,8.16,129.49,129.46,28.00501048]
[1750608557036,8.16,129.49,129.47,28.00501048]
[1750608557432,8.16,129.49,129.46,28.00501048]
[1750608557633,8.16,129.49,129.44,26.0]
[1750608557634,18.64964886,129.48,129.44,54.00501048]
[1750608557855,32.74,129.47,129.44,54.00501048]
[1750608558157,40.92,129.49,129.46,28.00501048]
[1750608558455,40.92,129.49,129.48,28.00501048]
[1750608558456,8.16,129.49,129.48,28.00501048]
[1750608558772,8.16,129.49,129.46,26.0]
[1750608558948,8.16,129.49,129.48,28.00501048]
[1750608559149,36.16501048,129.49,129.45,26.0]
[1750608559354,46.65465934,129.48,129.41,6.3093]
[1750608559675,32.86,129.47,129.4,1.5877]
[1750608559970,32.86,129.47,129.44,28.00501048]
[1750608560166,32.86,129.47,129.45,28.00501048]
[1750608560465,32.86,129.47,129.46,28.00501048]
[1750608560645,8.16,129.49,129.46,28.00501048]
[1750608560998,8.16,129.49,129.47,28.00501048]
[1750608561175,8.16,129.49,129.46,26.0]
[1750608561360,8.16,129.49,129.46,28.00501048]
[1750608561793,51.50964886,129.48,129.44,28.00501048]
[1750608561960,79.51465934,129.48,129.4,27.5877]
[1750608562165,79.51465934,129.48,129.44,28.00501048]
[1750608562490,51.50964886,129.48,129.43,26.0]
[1750608562789,51.50964886,129.48,129.45,28.00501048]
[1750608562983,51.50964886,129.48,129.43,26.0]
[1750608562984,51.50964886,129.48,129.44,28.00501048]
[1750608563380,32.86,129.48,129.46,28.00501048]
[1750608563561,8.16,129.49,129.47,28.00501048]
[1750608563757,8.16,129.49,129.46,26.0]
[1750608563976,8.16,129.49,129.42,26.0]
[1750608564166,8.16,129.49,129.46,28.00501048]
[1750608564368,8.16,129.49,129.45,54.00501048]
[1750608564782,8.16,129.49,129.46,28.00501048]
[1750608564962,36.16501048,129.49,129.45,26.0]
[1750608565155,36.16501048,129.49,129.45,54.00501048]
[1750608565352,32.82,129.48,129.45,54.00501048]
[1750608565572,60.82501048,129.48,129.44,28.00501048]
[1750608565890,60.82501048,129.48,129.37,6.5432]
[1750608565891,18.64964886,129.45,129.37,6.5432]
[1750608566063,51.44964886,129.45,129.43,28.00501048]
[1750608566375,32.8,129.45,129.44,28.00501048]
[1750608566762,32.8,129.45,129.41,26.0]
[1750608566962,32.8,129.45,129.37,6.5432]
[1750608566963,32.8,129.45,129.43,28.00501048]
[1750608567183,32.8,129.45,129.44,28.00501048]
[1750608567481,32.78,129.48,129.44,28.00501048]
[1750608567778,32.78,129.48,129.47,28.00501048]
[1750608568986,18.64964886,129.47,129.43,28.00501048]
[1750608569187,28.00501048,129.46,129.42,28.00501048]
[1750608569491,60.80501048,129.45,129.41,28.00501048]
[1750608569873,60.80501048,129.45,129.4,54.00501048]
[1750608570079,46.65465934,129.44,129.36,1.5183]
[1750608570267,46.65465934,129.44,129.4,28.00501048]
[1750608570468,46.65465934,129.44,129.4,54.00501048]
[1750608570864,46.65465934,129.44,129.4,26.0]
[1750608571279,46.65465934,129.44,129.4,54.00501048]
[1750608572070,46.65465934,129.44,129.4,26.0]
[1750608572767,46.65465934,129.44,129.4,54.00501048]
[1750608572963,18.64964886,129.42,129.36,1.5183]
[1750608573169,18.64964886,129.42,129.3,18.16]
[1750608573170,19.1518101,129.39,129.32,1.5494]
[1750608573476,51.8518101,129.38,129.33,19.1518101]
[1750608573672,32.7,129.37,129.33,19.1518101]
[1750608573995,51.8518101,129.37,129.33,19.1518101]
[1750608574186,37.80145896,129.36,129.31,19.1518101]
[1750608574410,37.80145896,129.36,129.3,26.0]
[1750608574411,8.16,129.35,129.32,19.1518101]
[1750608574895,8.16,129.35,129.33,19.1518101]
[1750608575275,8.16,129.35,129.34,54.01637834]
[1750608576196,8.16,129.35,129.34,26.0]
[1750608576569,8.16,129.35,129.34,54.01637834]
[1750608576769,6.4581,129.4,129.34,54.01637834]
[1750608576970,18.64964886,129.39,129.36,28.01637834]
[1750608577283,46.6660272,129.39,129.35,28.01637834]
[1750608577593,18.64964886,129.39,129.35,28.01637834]
[1750608577886,32.68,129.4,129.34,26.0]
[1750608578062,32.68,129.4,129.37,28.01637834]
[1750608579180,32.68,129.4,129.38,28.01637834]
[1750608580181,32.68,129.4,129.39,28.01637834]
[1750608580387,32.68,129.4,129.38,28.01637834]
[1750608580591,32.68,129.4,129.39,28.01637834]
[1750608580773,8.16,129.41,129.39,28.01637834]
[1750608580973,8.16,129.41,129.4,28.01637834]
[1750608581202,8.16,129.41,129.39,28.01637834]
[1750608581775,8.16,129.41,129.38,28.01637834]
[1750608582189,8.16,129.41,129.39,28.01637834]
[1750608582589,8.16,129.41,129.4,28.01637834]
[1750608583567,8.16,129.41,129.4,26.0]
[1750608584284,8.16,129.41,129.39,28.01637834]
[1750608584772,8.16,129.41,129.38,28.01637834]
[1750608585694,8.16,129.41,129.39,28.01637834]
[1750608585995,8.16,129.41,129.38,28.01637834]
[1750608586198,40.74,129.41,129.37,26.0]
[1750608586381,68.75637834,129.41,129.37,54.01637834]
[1750608586582,46.6660272,129.4,129.33,1.5484]
[1750608586788,46.6660272,129.38,129.34,28.01637834]
[1750608587001,51.20964886,129.38,129.34,54.01637834]
[1750608587219,28.01637834,129.37,129.32,28.01637834]
[1750608587401,18.64964886,129.37,129.32,28.01637834]
[1750608587587,28.01637834,129.35,129.32,26.0]
[1750608587895,60.55637834,129.35,129.32,26.0]
[1750608588404,32.54,129.35,129.33,28.01637834]
[1750608588904,32.54,129.35,129.34,28.01637834]
[1750608589806,32.54,129.37,129.34,54.01637834]
[1750608589996,32.54,129.38,129.36,28.01637834]
[1750608590307,32.54,129.4,129.37,28.01637834]
[1750608590477,32.54,129.4,129.37,54.01637834]
[1750608591403,18.64964886,129.39,129.32,26.0]
[1750608591606,46.6660272,129.39,129.36,26.0]
[1750608591796,46.6660272,129.39,129.35,28.01637834]
[1750608592718,46.6660272,129.39,129.31,26.0]
[1750608592719,18.64964886,129.37,129.31,26.0]
[1750608592900,32.54,129.36,129.33,28.01637834]
[1750608593883,32.54,129.36,129.32,28.01637834]
[1750608594210,32.54,129.36,129.32,54.01637834]
[1750608594407,32.54,129.36,129.33,28.01637834]
[1750608594580,18.64964886,129.37,129.32,54.01637834]
[1750608594783,18.64964886,129.37,129.33,28.01637834]
[1750608594983,28.01637834,129.36,129.32,54.01637834]
[1750608595185,32.54,129.35,129.32,54.01637834]
[1750608595504,46.6660272,129.34,129.29,28.01637834]
[1750608595816,46.6660272,129.32,129.27,28.01637834]
[1750608595983,18.64964886,129.28,129.24,28.01637834]
[1750608596184,18.64964886,129.28,129.15,38.01637834]
[1750608596185,28.01637834,129.26,129.22,28.01637834]
[1750608596507,28.01637834,129.25,129.21,28.01637834]
[1750608596681,32.54,129.26,129.24,28.01637834]
[1750608596881,32.54,129.26,129.25,28.01637834]
[1750608597196,32.54,129.28,129.25,28.01637834]
[1750608597586,32.54,129.28,129.26,28.01637834]
[1750608597787,8.26,129.31,129.26,28.01637834]
[1750608597788,28.01637834,129.31,129.26,28.01637834]
[1750608598083,8.26,129.3,129.27,26.0]
[1750608598301,8.26,129.3,129.29,28.01637834]
[1750608599110,8.26,129.3,129.28,28.01637834]
[1750608599292,8.26,129.3,129.27,26.0]